[Event "Titled Tuesday Blitz February 21 Early 2023"]
[White "Kiselev, Pavel"]
[Black "Sreyas Payyappat"]
[WhiteFideId "4191102"]
[BlackFideId "46674969"]
[WhiteElo "2245"]
[BlackElo "2076"]
[Result "0-1"]
[Round "05"]
[TimeControl "180+2"]
[Date "2023.02.21"]
[WhiteClock "0:00:07"]
[BlackClock "0:00:16"]

1. Nf3 {[%clk 0:03:00]}  Nf6 {[%clk 0:02:57]} 2. d4 {[%clk 0:03:00]}  c5 {[%clk 0:02:56]} 3. c4 {[%clk 0:03:01]}  e6 {[%clk 0:02:54]} 4. d5 {[%clk 0:03:00]}  exd5 {[%clk 0:02:52]} 5. cxd5 {[%clk 0:03:00]}  d6 {[%clk 0:02:53]} 6. Nc3 {[%clk 0:03:00]}  g6 {[%clk 0:02:54]} 7. e4 {[%clk 0:03:00]}  Bg7 {[%clk 0:02:51]} 8. Bd3 {[%clk 0:03:01]}  O-O {[%clk 0:02:47]} 9. O-O {[%clk 0:03:00]}  Bg4 {[%clk 0:02:40]} 10. h3 {[%clk 0:02:58]}  Bxf3 {[%clk 0:02:37]} 11. Qxf3 {[%clk 0:02:59]}  Re8 {[%clk 0:02:36]} 12. Bf4 {[%clk 0:02:58]}  a6 {[%clk 0:02:29]} 13. a4 {[%clk 0:02:58]}  Nbd7 {[%clk 0:02:12]} 14. Rfe1 {[%clk 0:02:53]}  Ne5 {[%clk 0:02:10]} 15. Bxe5 {[%clk 0:02:51]}  Rxe5 {[%clk 0:02:11]} 16. Qe3 {[%clk 0:02:47]}  Re8 {[%clk 0:02:06]} 17. f4 {[%clk 0:02:41]}  Nxd5 {[%clk 0:02:03]} 18. Qd2 {[%clk 0:02:36]}  Nxc3 {[%clk 0:01:58]} 19. bxc3 {[%clk 0:02:37]}  Qa5 {[%clk 0:01:58]} 20. Rec1 {[%clk 0:02:30]}  Rad8 {[%clk 0:01:57]} 21. Rab1 {[%clk 0:02:19]}  d5 {[%clk 0:01:54]} 22. exd5 {[%clk 0:02:07]}  Rxd5 {[%clk 0:01:55]} 23. Qc2 {[%clk 0:02:07]}  c4 {[%clk 0:01:46]} 24. Be4 {[%clk 0:01:54]}  Rd7 {[%clk 0:01:42]} 25. Bxb7 {[%clk 0:01:43]}  Rd3 {[%clk 0:01:22]} 26. Qa2 {[%clk 0:00:57]}  Rxc3 {[%clk 0:01:16]} 27. Rxc3 {[%clk 0:00:58]}  Qc5+ {[%clk 0:00:51]} 28. Kh1 {[%clk 0:00:57]}  Bxc3 {[%clk 0:00:47]} 29. Bxa6 {[%clk 0:00:58]}  Re4 {[%clk 0:00:41]} 30. Rc1 {[%clk 0:00:49]}  Rxf4 {[%clk 0:00:18]} 31. Rxc3 {[%clk 0:00:24]}  Rf1+ {[%clk 0:00:17]} 32. Kh2 {[%clk 0:00:25]}  Qe5+ {[%clk 0:00:16]} 33. Rg3 {[%clk 0:00:23]}  Qe1 {[%clk 0:00:16]} 34. Rf3 {[%clk 0:00:07]}  Rh1# {[%clk 0:00:16]} 0-1


[Site "https://www.chess.com"]

[Event "Titled Tuesday Blitz February 21 Early 2023"]
[White "Kielinkei"]
[Black "Quirke, Jeffrey"]
[BlackFideId "2013029"]
[WhiteElo "2378"]
[BlackElo "2007"]
[Result "1-0"]
[Round "05"]
[TimeControl "180+2"]
[Date "2023.02.21"]
[WhiteClock "0:00:22"]
[BlackClock "0:00:03"]

1. d4 {[%clk 0:03:00]}  g6 {[%clk 0:02:49]} 2. e4 {[%clk 0:03:00]}  Bg7 {[%clk 0:02:48]} 3. Nc3 {[%clk 0:03:01]}  d5 {[%clk 0:02:48]} 4. exd5 {[%clk 0:02:55]}  Nf6 {[%clk 0:02:48]} 5. Nf3 {[%clk 0:02:49]}  Nxd5 {[%clk 0:02:47]} 6. Nxd5 {[%clk 0:02:48]}  Qxd5 {[%clk 0:02:48]} 7. c4 {[%clk 0:02:47]}  Qd8 {[%clk 0:02:46]} 8. Be2 {[%clk 0:02:43]}  O-O {[%clk 0:02:46]} 9. O-O {[%clk 0:02:43]}  c6 {[%clk 0:02:27]} 10. Be3 {[%clk 0:02:42]}  Nd7 {[%clk 0:02:26]} 11. Qb3 {[%clk 0:02:31]}  Nf6 {[%clk 0:02:25]} 12. Rad1 {[%clk 0:02:30]}  Qb6 {[%clk 0:02:09]} 13. h3 {[%clk 0:02:21]}  Qxb3 {[%clk 0:02:09]} 14. axb3 {[%clk 0:02:21]}  Bf5 {[%clk 0:02:04]} 15. Ra1 {[%clk 0:02:17]}  a6 {[%clk 0:02:03]} 16. Ne5 {[%clk 0:02:04]}  Rfd8 {[%clk 0:02:00]} 17. g4 {[%clk 0:01:58]}  Be6 {[%clk 0:01:59]} 18. Rfd1 {[%clk 0:01:55]}  Nd7 {[%clk 0:01:58]} 19. f4 {[%clk 0:01:52]}  Nxe5 {[%clk 0:01:52]} 20. fxe5 {[%clk 0:01:51]}  f6 {[%clk 0:01:43]} 21. exf6 {[%clk 0:01:45]}  exf6 {[%clk 0:01:42]} 22. Bf3 {[%clk 0:01:43]}  Rd7 {[%clk 0:01:33]} 23. d5 {[%clk 0:01:39]}  cxd5 {[%clk 0:01:29]} 24. cxd5 {[%clk 0:01:39]}  Bf7 {[%clk 0:01:28]} 25. Bb6 {[%clk 0:01:02]}  Re8 {[%clk 0:01:22]} 26. Rac1 {[%clk 0:00:48]}  f5 {[%clk 0:01:20]} 27. gxf5 {[%clk 0:00:45]}  gxf5 {[%clk 0:01:21]} 28. Rc2 {[%clk 0:00:35]}  Bg6 {[%clk 0:00:39]} 29. Rcd2 {[%clk 0:00:34]}  f4 {[%clk 0:00:38]} 30. d6 {[%clk 0:00:28]}  Be5 {[%clk 0:00:22]} 31. Bg4 {[%clk 0:00:27]}  Rdd8 {[%clk 0:00:06]} 32. d7 {[%clk 0:00:27]}  Rf8 {[%clk 0:00:04]} 33. Bxd8 {[%clk 0:00:26]}  Rxd8 {[%clk 0:00:05]} 34. Rc1 {[%clk 0:00:25]}  Kf7 {[%clk 0:00:03]} 35. Rc8 {[%clk 0:00:24]}  Bf6 {[%clk 0:00:02]} 36. Rxd8 {[%clk 0:00:23]}  Bxd8 {[%clk 0:00:03]} 37. Re2 {[%clk 0:00:22]} 1-0


[Site "https://www.chess.com"]

[Event "Titled Tuesday Blitz February 21 Early 2023"]
[White "Burke, John F"]
[Black "Carrasco Miranda, Andres"]
[WhiteFideId "2052970"]
[BlackFideId "3405990"]
[WhiteElo "2013"]
[BlackElo "2240"]
[Result "0-1"]
[Round "05"]
[TimeControl "180+2"]
[Date "2023.02.21"]
[WhiteClock "0:00:47"]
[BlackClock "0:00:11"]

1. d4 {[%clk 0:03:00]}  Nf6 {[%clk 0:02:58]} 2. c4 {[%clk 0:03:00]}  g6 {[%clk 0:02:58]} 3. Nc3 {[%clk 0:03:00]}  d5 {[%clk 0:02:58]} 4. Nf3 {[%clk 0:03:00]}  Bg7 {[%clk 0:02:57]} 5. Bf4 {[%clk 0:03:00]}  O-O {[%clk 0:02:57]} 6. Rc1 {[%clk 0:03:00]}  c5 {[%clk 0:02:54]} 7. dxc5 {[%clk 0:03:00]}  Be6 {[%clk 0:02:53]} 8. e3 {[%clk 0:02:52]}  dxc4 {[%clk 0:02:52]} 9. Qxd8 {[%clk 0:02:51]}  Rxd8 {[%clk 0:02:52]} 10. Ne5 {[%clk 0:02:50]}  Na6 {[%clk 0:02:51]} 11. c6 {[%clk 0:02:49]}  bxc6 {[%clk 0:02:41]} 12. Nxc6 {[%clk 0:02:49]}  Rd7 {[%clk 0:02:26]} 13. Be2 {[%clk 0:02:44]}  Rc8 {[%clk 0:02:15]} 14. Nd4 {[%clk 0:02:44]}  Bg4 {[%clk 0:01:48]} 15. f3 {[%clk 0:02:39]}  Nh5 {[%clk 0:01:48]} 16. Bg3 {[%clk 0:02:26]}  Nxg3 {[%clk 0:01:44]} 17. hxg3 {[%clk 0:02:26]}  e5 {[%clk 0:01:45]} 18. Ndb5 {[%clk 0:02:18]}  Be6 {[%clk 0:01:42]} 19. Rd1 {[%clk 0:02:05]}  Rxd1+ {[%clk 0:01:28]} 20. Kxd1 {[%clk 0:02:04]}  Nb4 {[%clk 0:01:12]} 21. a3 {[%clk 0:02:04]}  a6 {[%clk 0:01:04]} 22. axb4 {[%clk 0:01:54]}  axb5 {[%clk 0:01:04]} 23. Nxb5 {[%clk 0:01:55]}  Rb8 {[%clk 0:01:03]} 24. Nc3 {[%clk 0:01:52]}  Rxb4 {[%clk 0:01:02]} 25. Kc2 {[%clk 0:01:51]}  Bf8 {[%clk 0:00:49]} 26. Rd1 {[%clk 0:01:40]}  Bc5 {[%clk 0:00:49]} 27. e4 {[%clk 0:01:39]}  Bd4 {[%clk 0:00:49]} 28. g4 {[%clk 0:01:27]}  Kg7 {[%clk 0:00:48]} 29. Ra1 {[%clk 0:01:27]}  Kf6 {[%clk 0:00:47]} 30. Ra6 {[%clk 0:01:26]}  Kg5 {[%clk 0:00:47]} 31. g3 {[%clk 0:01:16]}  Bf2 {[%clk 0:00:47]} 32. Nd5 {[%clk 0:01:11]}  Rb8 {[%clk 0:00:21]} 33. f4+ {[%clk 0:01:11]}  Kh6 {[%clk 0:00:18]} 34. g5+ {[%clk 0:01:11]}  Kg7 {[%clk 0:00:17]} 35. Nf6 {[%clk 0:01:01]}  Bd4 {[%clk 0:00:14]} 36. Ra2 {[%clk 0:00:56]}  h6 {[%clk 0:00:12]} 37. gxh6+ {[%clk 0:00:54]}  Kxf6 {[%clk 0:00:12]} 38. h7 {[%clk 0:00:50]}  Kg7 {[%clk 0:00:12]} 39. g4 {[%clk 0:00:47]}  exf4 {[%clk 0:00:11]} 0-1


[Site "https://www.chess.com"]

[Event "Titled Tuesday Blitz February 21 Early 2023"]
[White "Avazkhonov, Alikhon"]
[Black "Kuchava, Ana"]
[WhiteFideId "14208504"]
[BlackFideId "13605348"]
[WhiteElo "1538"]
[BlackElo "2101"]
[Result "1-0"]
[Round "05"]
[TimeControl "180+2"]
[Date "2023.02.21"]
[WhiteClock "0:00:06"]
[BlackClock "0:00:20"]

1. d4 {[%clk 0:02:59]}  d5 {[%clk 0:02:59]} 2. c4 {[%clk 0:03:00]}  e6 {[%clk 0:02:56]} 3. Nc3 {[%clk 0:03:00]}  Be7 {[%clk 0:02:52]} 4. Nf3 {[%clk 0:02:58]}  Nf6 {[%clk 0:02:52]} 5. cxd5 {[%clk 0:02:56]}  exd5 {[%clk 0:02:51]} 6. Bg5 {[%clk 0:02:56]}  c6 {[%clk 0:02:50]} 7. e3 {[%clk 0:02:55]}  Bf5 {[%clk 0:02:48]} 8. Bd3 {[%clk 0:02:52]}  Bxd3 {[%clk 0:02:48]} 9. Qxd3 {[%clk 0:02:53]}  O-O {[%clk 0:02:47]} 10. O-O {[%clk 0:02:53]}  h6 {[%clk 0:02:47]} 11. Bh4 {[%clk 0:02:52]}  Nbd7 {[%clk 0:02:47]} 12. Rab1 {[%clk 0:02:50]}  a5 {[%clk 0:02:43]} 13. a3 {[%clk 0:02:50]}  Re8 {[%clk 0:02:38]} 14. h3 {[%clk 0:02:46]}  Ne4 {[%clk 0:02:32]} 15. Nxe4 {[%clk 0:02:33]}  Bxh4 {[%clk 0:02:25]} 16. Nd6 {[%clk 0:02:29]}  Re6 {[%clk 0:02:13]} 17. Nxb7 {[%clk 0:02:28]}  Qe7 {[%clk 0:02:12]} 18. Rfc1 {[%clk 0:02:19]}  Bf6 {[%clk 0:02:08]} 19. Nc5 {[%clk 0:02:18]}  Nxc5 {[%clk 0:02:06]} 20. Rxc5 {[%clk 0:02:19]}  Qb7 {[%clk 0:01:58]} 21. Qc3 {[%clk 0:02:02]}  a4 {[%clk 0:01:51]} 22. Rc1 {[%clk 0:01:59]}  Ra6 {[%clk 0:01:50]} 23. Qc2 {[%clk 0:01:50]}  Qb6 {[%clk 0:01:43]} 24. Ne1 {[%clk 0:01:48]}  Be7 {[%clk 0:01:33]} 25. Rc3 {[%clk 0:01:48]}  Qb5 {[%clk 0:01:27]} 26. Nd3 {[%clk 0:01:48]}  Rg6 {[%clk 0:01:15]} 27. Ne5 {[%clk 0:01:43]}  Re6 {[%clk 0:01:08]} 28. Nxc6 {[%clk 0:01:00]}  Bd6 {[%clk 0:01:03]} 29. Nd8 {[%clk 0:00:51]}  Re8 {[%clk 0:00:59]} 30. Nc6 {[%clk 0:00:26]}  g6 {[%clk 0:00:56]} 31. Qd3 {[%clk 0:00:19]}  Qxd3 {[%clk 0:00:51]} 32. Rxd3 {[%clk 0:00:20]}  Rb6 {[%clk 0:00:48]} 33. Rc2 {[%clk 0:00:15]}  Kg7 {[%clk 0:00:46]} 34. Rdc3 {[%clk 0:00:16]}  Rc8 {[%clk 0:00:40]} 35. Na5 {[%clk 0:00:10]}  Rcb8 {[%clk 0:00:39]} 36. Rc6 {[%clk 0:00:08]}  Rxc6 {[%clk 0:00:31]} 37. Nxc6 {[%clk 0:00:09]}  Rb3 {[%clk 0:00:29]} 38. Kf1 {[%clk 0:00:07]}  f5 {[%clk 0:00:28]} 39. Ke2 {[%clk 0:00:07]}  Kf6 {[%clk 0:00:28]} 40. f4 {[%clk 0:00:07]}  g5 {[%clk 0:00:28]} 41. g3 {[%clk 0:00:06]}  gxf4 {[%clk 0:00:27]} 42. gxf4 {[%clk 0:00:07]}  Rb7 {[%clk 0:00:27]} 43. Ne5 {[%clk 0:00:07]}  Rg7 {[%clk 0:00:25]} 44. Kf3 {[%clk 0:00:06]}  Ke6 {[%clk 0:00:25]} 45. Rg2 {[%clk 0:00:05]}  Rxg2 {[%clk 0:00:23]} 46. Kxg2 {[%clk 0:00:06]}  Bc7 {[%clk 0:00:23]} 47. Kf3 {[%clk 0:00:06]}  Ba5 {[%clk 0:00:24]} 48. Ke2 {[%clk 0:00:06]}  h5 {[%clk 0:00:21]} 49. Nd3 {[%clk 0:00:06]}  Bb6 {[%clk 0:00:19]} 50. Nc5+ {[%clk 0:00:07]}  Kd6 {[%clk 0:00:20]} 51. Nxa4 {[%clk 0:00:07]}  Ba5 {[%clk 0:00:19]} 52. b4 {[%clk 0:00:07]}  Kc6 {[%clk 0:00:20]} 53. bxa5 {[%clk 0:00:06]}  Kb5 {[%clk 0:00:20]} 54. Nc5 {[%clk 0:00:06]} 1-0


[Site "https://www.chess.com"]

[Event "Titled Tuesday Blitz February 21 Early 2023"]
[White "Martin Barcelo, Carles"]
[Black "Kiseljova, Marya"]
[WhiteFideId "24561444"]
[BlackFideId "4155009"]
[WhiteElo "2221"]
[BlackElo "2031"]
[Result "1-0"]
[Round "05"]
[TimeControl "180+2"]
[Date "2023.02.21"]
[WhiteClock "0:00:12"]
[BlackClock "0:00:23"]

1. g3 {[%clk 0:02:50]}  d5 {[%clk 0:02:57]} 2. Bg2 {[%clk 0:02:49]}  Nf6 {[%clk 0:02:52]} 3. Nf3 {[%clk 0:02:47]}  Nbd7 {[%clk 0:02:52]} 4. d4 {[%clk 0:02:46]}  e6 {[%clk 0:02:46]} 5. O-O {[%clk 0:02:46]}  Be7 {[%clk 0:02:43]} 6. c4 {[%clk 0:02:44]}  dxc4 {[%clk 0:02:42]} 7. Nbd2 {[%clk 0:02:32]}  Nb6 {[%clk 0:02:33]} 8. Qc2 {[%clk 0:02:17]}  O-O {[%clk 0:02:29]} 9. Nxc4 {[%clk 0:02:16]}  Bd7 {[%clk 0:02:26]} 10. Nfe5 {[%clk 0:02:11]}  Nbd5 {[%clk 0:02:14]} 11. a3 {[%clk 0:02:05]}  c5 {[%clk 0:02:07]} 12. dxc5 {[%clk 0:01:59]}  Bxc5 {[%clk 0:02:06]} 13. b4 {[%clk 0:01:56]}  Bd4 {[%clk 0:01:59]} 14. Bb2 {[%clk 0:01:56]}  Bxb2 {[%clk 0:01:57]} 15. Qxb2 {[%clk 0:01:57]}  Qe7 {[%clk 0:01:47]} 16. Rac1 {[%clk 0:01:48]}  Ba4 {[%clk 0:01:45]} 17. Na5 {[%clk 0:01:44]}  Rac8 {[%clk 0:01:40]} 18. Rxc8 {[%clk 0:01:43]}  Rxc8 {[%clk 0:01:40]} 19. Rc1 {[%clk 0:01:44]}  Rxc1+ {[%clk 0:01:28]} 20. Qxc1 {[%clk 0:01:45]}  b6 {[%clk 0:01:17]} 21. Qc8+ {[%clk 0:01:22]}  Qe8 {[%clk 0:01:15]} 22. Qxe8+ {[%clk 0:01:21]}  Bxe8 {[%clk 0:01:01]} 23. Nac6 {[%clk 0:01:16]}  a6 {[%clk 0:00:58]} 24. Bf1 {[%clk 0:00:48]}  Nd7 {[%clk 0:00:51]} 25. e4 {[%clk 0:00:39]}  Nxe5 {[%clk 0:00:51]} 26. Nxe5 {[%clk 0:00:37]}  Nc3 {[%clk 0:00:50]} 27. Bxa6 {[%clk 0:00:34]}  Nxe4 {[%clk 0:00:49]} 28. Bb7 {[%clk 0:00:23]}  Nd6 {[%clk 0:00:49]} 29. Ba6 {[%clk 0:00:16]}  Kf8 {[%clk 0:00:47]} 30. f3 {[%clk 0:00:13]}  Ke7 {[%clk 0:00:46]} 31. Kf2 {[%clk 0:00:14]}  f6 {[%clk 0:00:46]} 32. Nc4 {[%clk 0:00:12]}  Nxc4 {[%clk 0:00:46]} 33. Bxc4 {[%clk 0:00:13]}  b5 {[%clk 0:00:47]} 34. Bd3 {[%clk 0:00:13]}  Kd6 {[%clk 0:00:46]} 35. Ke3 {[%clk 0:00:13]}  h6 {[%clk 0:00:44]} 36. f4 {[%clk 0:00:12]}  e5 {[%clk 0:00:44]} 37. h3 {[%clk 0:00:09]}  exf4+ {[%clk 0:00:43]} 38. Kxf4 {[%clk 0:00:10]}  Kd5 {[%clk 0:00:42]} 39. Kf5 {[%clk 0:00:08]}  Kd4 {[%clk 0:00:42]} 40. Be2 {[%clk 0:00:08]}  Kc3 {[%clk 0:00:40]} 41. Ke6 {[%clk 0:00:04]}  Kb3 {[%clk 0:00:40]} 42. Ke7 {[%clk 0:00:03]}  Bc6 {[%clk 0:00:39]} 43. Kd6 {[%clk 0:00:04]}  Bg2 {[%clk 0:00:35]} 44. Bxb5 {[%clk 0:00:03]}  Kxa3 {[%clk 0:00:36]} 45. Kc5 {[%clk 0:00:04]}  Bxh3 {[%clk 0:00:35]} 46. Bc6 {[%clk 0:00:04]}  Bf1 {[%clk 0:00:27]} 47. b5 {[%clk 0:00:05]}  g5 {[%clk 0:00:26]} 48. b6 {[%clk 0:00:05]}  Ba6 {[%clk 0:00:25]} 49. Bb5 {[%clk 0:00:05]}  Bb7 {[%clk 0:00:25]} 50. Bc6 {[%clk 0:00:05]}  Bc8 {[%clk 0:00:24]} 51. Kd6 {[%clk 0:00:05]}  Ba6 {[%clk 0:00:23]} 52. Ke6 {[%clk 0:00:05]}  h5 {[%clk 0:00:23]} 53. Kxf6 {[%clk 0:00:03]}  h4 {[%clk 0:00:23]} 54. g4 {[%clk 0:00:04]}  h3 {[%clk 0:00:20]} 55. b7 {[%clk 0:00:02]}  Bxb7 {[%clk 0:00:20]} 56. Bxb7 {[%clk 0:00:03]}  Ka4 {[%clk 0:00:20]} 57. Kxg5 {[%clk 0:00:04]}  Kb5 {[%clk 0:00:20]} 58. Bh1 {[%clk 0:00:04]}  Kc5 {[%clk 0:00:20]} 59. Kh4 {[%clk 0:00:05]}  Kd6 {[%clk 0:00:20]} 60. Kxh3 {[%clk 0:00:05]}  Ke7 {[%clk 0:00:20]} 61. Kg3 {[%clk 0:00:06]}  Kf6 {[%clk 0:00:21]} 62. Bf3 {[%clk 0:00:07]}  Kg5 {[%clk 0:00:22]} 63. Be2 {[%clk 0:00:07]}  Kg6 {[%clk 0:00:22]} 64. Kf4 {[%clk 0:00:08]}  Kg7 {[%clk 0:00:22]} 65. g5 {[%clk 0:00:09]}  Kg6 {[%clk 0:00:23]} 66. Kg4 {[%clk 0:00:09]}  Kg7 {[%clk 0:00:23]} 67. Kf5 {[%clk 0:00:10]}  Kh7 {[%clk 0:00:23]} 68. g6+ {[%clk 0:00:11]}  Kg7 {[%clk 0:00:24]} 69. Kg5 {[%clk 0:00:12]}  Kg8 {[%clk 0:00:24]} 70. Kf6 {[%clk 0:00:12]}  Kh8 {[%clk 0:00:25]} 71. g7+ {[%clk 0:00:13]}  Kh7 {[%clk 0:00:25]} 72. Bd3+ {[%clk 0:00:13]}  Kg8 {[%clk 0:00:25]} 73. Bc4+ {[%clk 0:00:12]}  Kh7 {[%clk 0:00:25]} 74. g8=Q+ {[%clk 0:00:13]}  Kh6 {[%clk 0:00:23]} 75. Qg5+ {[%clk 0:00:13]}  Kh7 {[%clk 0:00:23]} 76. Qg6+ {[%clk 0:00:12]}  Kh8 {[%clk 0:00:23]} 77. Qg7# {[%clk 0:00:12]} 1-0


[Site "https://www.chess.com"]

[Event "Titled Tuesday Blitz February 21 Early 2023"]
[White "Osuna Vega, Enrique"]
[Black "Koridze, Lile"]
[WhiteFideId "2219549"]
[BlackFideId "13612514"]
[WhiteElo "2061"]
[BlackElo "2191"]
[Result "0-1"]
[Round "05"]
[TimeControl "180+2"]
[Date "2023.02.21"]
[WhiteClock "0:00:02"]
[BlackClock "0:01:03"]

1. e4 {[%clk 0:02:59]}  c5 {[%clk 0:02:59]} 2. Nf3 {[%clk 0:02:59]}  d6 {[%clk 0:02:59]} 3. d4 {[%clk 0:02:59]}  cxd4 {[%clk 0:03:00]} 4. Nxd4 {[%clk 0:03:00]}  Nf6 {[%clk 0:03:00]} 5. f3 {[%clk 0:03:01]}  a6 {[%clk 0:02:59]} 6. c4 {[%clk 0:03:00]}  e5 {[%clk 0:02:59]} 7. Nc2 {[%clk 0:02:59]}  Be7 {[%clk 0:02:59]} 8. Nc3 {[%clk 0:02:59]}  O-O {[%clk 0:02:59]} 9. Be3 {[%clk 0:02:59]}  Be6 {[%clk 0:02:59]} 10. Be2 {[%clk 0:02:52]}  Nbd7 {[%clk 0:02:51]} 11. O-O {[%clk 0:02:51]}  a5 {[%clk 0:02:42]} 12. Na3 {[%clk 0:02:36]}  Nc5 {[%clk 0:02:41]} 13. Nab5 {[%clk 0:02:27]}  b6 {[%clk 0:02:19]} 14. b3 {[%clk 0:02:16]}  Ne8 {[%clk 0:02:09]} 15. Qd2 {[%clk 0:02:14]}  Nc7 {[%clk 0:02:08]} 16. Rfd1 {[%clk 0:02:09]}  Ne8 {[%clk 0:01:51]} 17. Rac1 {[%clk 0:01:51]}  f5 {[%clk 0:01:49]} 18. Bxc5 {[%clk 0:01:32]}  bxc5 {[%clk 0:01:45]} 19. Nd5 {[%clk 0:01:30]}  Bg5 {[%clk 0:01:40]} 20. f4 {[%clk 0:01:19]}  exf4 {[%clk 0:01:34]} 21. Nxf4 {[%clk 0:01:07]}  fxe4 {[%clk 0:01:20]} 22. Nxe6 {[%clk 0:00:47]}  Bxd2 {[%clk 0:01:20]} 23. Nxd8 {[%clk 0:00:47]}  Be3+ {[%clk 0:01:20]} 24. Kh1 {[%clk 0:00:46]}  Rxd8 {[%clk 0:01:21]} 25. Rb1 {[%clk 0:00:40]}  Rf2 {[%clk 0:01:16]} 26. Bg4 {[%clk 0:00:32]}  Rxa2 {[%clk 0:01:15]} 27. Ra1 {[%clk 0:00:21]}  Rxa1 {[%clk 0:01:13]} 28. Rxa1 {[%clk 0:00:22]}  Bd2 {[%clk 0:01:13]} 29. Kg1 {[%clk 0:00:19]}  Nf6 {[%clk 0:01:08]} 30. Be6+ {[%clk 0:00:14]}  Kf8 {[%clk 0:01:08]} 31. Kf1 {[%clk 0:00:14]}  d5 {[%clk 0:01:06]} 32. cxd5 {[%clk 0:00:09]}  Nxd5 {[%clk 0:01:07]} 33. Bxd5 {[%clk 0:00:04]}  Rxd5 {[%clk 0:01:07]} 34. Ke2 {[%clk 0:00:03]}  Bb4 {[%clk 0:01:06]} 35. Rd1 {[%clk 0:00:02]}  Rxd1 {[%clk 0:01:02]} 36. Kxd1 {[%clk 0:00:03]}  Ke7 {[%clk 0:01:03]} 37. Ke2 {[%clk 0:00:03]}  Kf6 {[%clk 0:01:03]} 38. Ke3 {[%clk 0:00:02]}  Ke5 {[%clk 0:01:03]} 0-1


[Site "https://www.chess.com"]

[Event "Titled Tuesday Blitz February 21 Early 2023"]
[White "Lucassen, Mickey"]
[Black "Bongo Akanga Ndjila, Barthelemy"]
[WhiteFideId "12919110"]
[BlackFideId "10609431"]
[WhiteElo "2023"]
[BlackElo "1824"]
[Result "1-0"]
[Round "05"]
[TimeControl "180+2"]
[Date "2023.02.21"]
[WhiteClock "0:00:15"]
[BlackClock "0:00:01"]

1. d4 {[%clk 0:02:59]}  d5 {[%clk 0:02:59]} 2. Bf4 {[%clk 0:02:58]}  e6 {[%clk 0:02:54]} 3. e3 {[%clk 0:02:56]}  Nf6 {[%clk 0:02:54]} 4. Nf3 {[%clk 0:02:56]}  Bd6 {[%clk 0:02:55]} 5. Bg3 {[%clk 0:02:55]}  O-O {[%clk 0:02:55]} 6. Bd3 {[%clk 0:02:55]}  c5 {[%clk 0:02:55]} 7. c3 {[%clk 0:02:55]}  Qc7 {[%clk 0:02:55]} 8. O-O {[%clk 0:02:54]}  Nbd7 {[%clk 0:02:56]} 9. Nbd2 {[%clk 0:02:53]}  e5 {[%clk 0:02:55]} 10. dxe5 {[%clk 0:02:51]}  Nxe5 {[%clk 0:02:55]} 11. Nxe5 {[%clk 0:02:50]}  Bxe5 {[%clk 0:02:56]} 12. Bxe5 {[%clk 0:02:50]}  Qxe5 {[%clk 0:02:56]} 13. Nf3 {[%clk 0:02:51]}  Qe7 {[%clk 0:02:53]} 14. h3 {[%clk 0:02:46]}  b6 {[%clk 0:02:52]} 15. Qc2 {[%clk 0:02:42]}  a5 {[%clk 0:02:50]} 16. a4 {[%clk 0:02:41]}  Ba6 {[%clk 0:02:49]} 17. Rad1 {[%clk 0:02:41]}  Bxd3 {[%clk 0:02:48]} 18. Qxd3 {[%clk 0:02:40]}  Rfd8 {[%clk 0:02:44]} 19. Qb5 {[%clk 0:02:37]}  Qd6 {[%clk 0:02:34]} 20. c4 {[%clk 0:02:31]}  Qe6 {[%clk 0:02:24]} 21. cxd5 {[%clk 0:02:08]}  Rxd5 {[%clk 0:02:14]} 22. Rxd5 {[%clk 0:02:06]}  Nxd5 {[%clk 0:02:12]} 23. Rd1 {[%clk 0:02:04]}  Nb4 {[%clk 0:02:07]} 24. Qd7 {[%clk 0:01:48]}  Qxd7 {[%clk 0:01:56]} 25. Rxd7 {[%clk 0:01:49]}  Rb8 {[%clk 0:01:48]} 26. Ne5 {[%clk 0:01:46]}  f6 {[%clk 0:01:48]} 27. Nc4 {[%clk 0:01:46]}  h5 {[%clk 0:01:40]} 28. Rd6 {[%clk 0:01:31]}  Kf7 {[%clk 0:01:36]} 29. Rxb6 {[%clk 0:01:27]}  Rxb6 {[%clk 0:01:08]} 30. Nxb6 {[%clk 0:01:27]}  Nd3 {[%clk 0:01:07]} 31. Nc4 {[%clk 0:01:24]}  Ke6 {[%clk 0:01:05]} 32. b3 {[%clk 0:01:21]}  Kd5 {[%clk 0:00:53]} 33. Nxa5 {[%clk 0:01:20]}  g5 {[%clk 0:00:47]} 34. Kf1 {[%clk 0:01:17]}  f5 {[%clk 0:00:43]} 35. Ke2 {[%clk 0:01:17]}  Nb4 {[%clk 0:00:44]} 36. Nc4 {[%clk 0:01:14]}  Nc6 {[%clk 0:00:39]} 37. a5 {[%clk 0:01:10]}  Na7 {[%clk 0:00:36]} 38. Kd3 {[%clk 0:01:07]}  Nb5 {[%clk 0:00:36]} 39. f3 {[%clk 0:01:04]}  h4 {[%clk 0:00:35]} 40. e4+ {[%clk 0:01:01]}  fxe4+ {[%clk 0:00:35]} 41. fxe4+ {[%clk 0:01:02]}  Ke6 {[%clk 0:00:35]} 42. Nb6 {[%clk 0:00:56]}  Ke5 {[%clk 0:00:32]} 43. Kc4 {[%clk 0:00:53]}  Nd6+ {[%clk 0:00:30]} 44. Kxc5 {[%clk 0:00:53]}  Nxe4+ {[%clk 0:00:31]} 45. Kc6 {[%clk 0:00:53]}  Kf4 {[%clk 0:00:19]} 46. a6 {[%clk 0:00:52]}  Kg3 {[%clk 0:00:20]} 47. a7 {[%clk 0:00:52]}  Kxg2 {[%clk 0:00:21]} 48. a8=Q {[%clk 0:00:53]}  Kxh3 {[%clk 0:00:22]} 49. Kd5 {[%clk 0:00:50]}  g4 {[%clk 0:00:22]} 50. Kxe4 {[%clk 0:00:50]}  g3 {[%clk 0:00:23]} 51. Kf3 {[%clk 0:00:48]}  g2 {[%clk 0:00:24]} 52. Qg8 {[%clk 0:00:46]}  g1=Q {[%clk 0:00:25]} 53. Qe6+ {[%clk 0:00:39]}  Kh2 {[%clk 0:00:21]} 54. Qe2+ {[%clk 0:00:39]}  Kh1 {[%clk 0:00:18]} 55. Nd5 {[%clk 0:00:29]}  Qg3+ {[%clk 0:00:17]} 56. Ke4 {[%clk 0:00:28]}  Qg6+ {[%clk 0:00:14]} 57. Kf3 {[%clk 0:00:23]}  Qh5+ {[%clk 0:00:12]} 58. Kf2 {[%clk 0:00:19]}  Qxd5 {[%clk 0:00:11]} 59. Qf1+ {[%clk 0:00:19]}  Kh2 {[%clk 0:00:11]} 60. Qc4 {[%clk 0:00:18]}  Qf5+ {[%clk 0:00:08]} 61. Ke3 {[%clk 0:00:19]}  Qg5+ {[%clk 0:00:06]} 62. Kf2 {[%clk 0:00:16]}  Qg1+ {[%clk 0:00:05]} 63. Ke2 {[%clk 0:00:15]}  Qg2+ {[%clk 0:00:04]} 64. Ke1 {[%clk 0:00:15]}  h3 {[%clk 0:00:04]} 65. b4 {[%clk 0:00:15]}  Kg1 {[%clk 0:00:03]} 66. Qd4+ {[%clk 0:00:15]}  Kh1 {[%clk 0:00:03]} 67. b5 {[%clk 0:00:15]}  Qg3+ {[%clk 0:00:01]} 68. Kd2 {[%clk 0:00:15]} 1-0


[Site "https://www.chess.com"]